[Event "Asian Amateur Rapid 2024"]
[Site "Al Ain"]
[Date "2024.12.15"]
[Round "1.15"]
[White "Saud Bader Huwair Alzarooni"]
[Black "Sendi, David V"]
[Result "0-1"]
[ECO "B06"]
[WhiteElo "1644"]
[BlackElo "1747"]
[Annotator "NA"]
[PlyCount "107"]
[EventDate "2024.12.15"]
[EventType "swiss"]
[EventCountry "UAE"]
[SourceTitle "playchess.com"]
[Source "ChessBase"]
[SourceQuality "1"]
[TimeControl "900+10"]

1. e4 {[%emt 0:00:03]} g6 {[%emt 0:00:03]} 2. d4 {[%emt 0:00:03]} d6 {[%emt 0:00:02]} 3. f4 {[%emt 0:00:19]} Bg7 {[%emt 0:00:01]} 4. Nf3 {[%emt 0:00:02]} a6 {[%emt 0:00:01]} 5. Nc3 {[%emt 0:00:02]} c6 {[%emt 0:00:03]} 6. Be3 {[%emt 0:00:30]} b5 {[%emt 0:00:04]} 7. a3 {[%emt 0:00:02]} Bb7 {[%emt 0:00:07]} 8. Bd3 {[%emt 0:00:03]} Nd7 {[%emt 0:00:02]} 9. O-O {[%emt 0:00:04]} Ngf6 {[%emt 0:00:14]} 10. h3 {[%emt 0:00:39]} O-O {[%emt 0:00:03]} 11. e5 {[%emt 0:00:02]} Ne8 {[%emt 0:00:08]} 12. Ng5 {[%emt 0:01:31]} e6 {[%emt 0:00:04]} 13. g4 {[%emt 0:01:12]} h6 {[%emt 0:00:16]} 14. Nf3 {[%emt 0:00:16]} dxe5 {[%emt 0:00:12]} 15. dxe5 {[%emt 0:00:06]} Qc7 {[%emt 0:00:26]} 16. Qe2 {[%emt 0:02:05]} Nb6 {[%emt 0:00:20]} 17. Bc5 {[%emt 0:00:09]} Nd5 {[%emt 0:00:04]} 18. Nxd5 {[%emt 0:00:14]} cxd5 {[%emt 0:00:05]} 19. Bxf8 {[%emt 0:00:05]} Bxf8 {[%emt 0:00:02]} 20. f5 {[%emt 0:00:15]} exf5 {[%emt 0:00:19]} 21. gxf5 {[%emt 0:00:03]} Qb6+ {[%emt 0:00:14]} 22. Kh2 {[%emt 0:00:04]} g5 {[%emt 0:00:04]} 23. Rg1 {[%emt 0:00:09]} f6 {[%emt 0:00:14]} 24. e6 {[%emt 0:02:47]} Bd6+ {[%emt 0:00:17]} 25. Kh1 {[%emt 0:00:07]} Bf4 {[%emt 0:00:39]} 26. c3 {[%emt 0:01:12]} d4 {[%emt 0:00:04]} 27. Be4 {[%emt 0:00:21]} dxc3 {[%emt 0:00:10]} 28. bxc3 {[%emt 0:00:53]} Bxe4 {[%emt 0:00:15]} 29. Qxe4 {[%emt 0:00:02]} Rc8 {[%emt 0:00:12]} 30. Rg4 {[%emt 0:02:04]} Nd6 {[%emt 0:00:09]} 31. Qxf4 {[%emt 0:00:08]} Rxc3 {[%emt 0:00:11]} 32. Qd4 {[%emt 0:00:46]} Qc6 {[%emt 0:00:16]} 33. Rf1 {[%emt 0:00:54]} Rxf3 {[%emt 0:00:04]} 34. Rxf3 {[%emt 0:00:02]} Qxf3+ {[%emt 0:00:01]} 35. Kh2 {[%emt 0:00:07]} Nxf5 {[%emt 0:00:18]} 36. Qd8+ {[%emt 0:00:09]} Kg7 {[%emt 0:00:15]} 37. Qd7+ {[%emt 0:00:02]} Kh8 {[%emt 0:00:16]} 38. Qe8+ {[%emt 0:00:02]} Kh7 {[%emt 0:00:03]} 39. Qd7+ {[%emt 0:01:25]} Kh8 {[%emt 0:00:19]} 40. Qe8+ {[%emt 0:00:34]} Kh7 {[%emt 0:00:07]} 41. Qf7+ {[%emt 0:00:01]} Ng7 {[%emt 0:00:02]} 42. Qd7 {[%emt 0:01:26]} Qe2+ {[%emt 0:00:08]} 43. Rg2 {[%emt 0:00:07]} Qe5+ {[%emt 0:00:02]} 44. Kh1 {[%emt 0:00:18]} Qe1+ {[%emt 0:00:09]} 45. Rg1 {[%emt 0:00:14]} Qe4+ {[%emt 0:00:03]} 46. Kh2 {[%emt 0:00:01]} Qe2+ {[%emt 0:00:02]} 47. Kg3 {[%emt 0:00:47]} Qe3+ {[%emt 0:00:06]} 48. Kg2 {[%emt 0:00:01]} Qe2+ {[%emt 0:00:02]} 49. Kh1 {[%emt 0:00:02]} Qf3+ {[%emt 0:00:09]} 50. Kh2 {[%emt 0:00:04]} Qf2+ {[%emt 0:00:02]} 51. Rg2 {[%emt 0:00:02]} Qf4+ {[%emt 0:00:01]} 52. Kg1 {[%emt 0:00:04]} Qe3+ {[%emt 0:00:01]} 53. Rf2 {[%emt 0:00:05]} Qg3+ {[%emt 0:00:05]} 54. Kf1 {[%emt 0:00:27]} 0-1

[Event "Asian Amateur Rapid 2024"]
[Site "Al Ain"]
[Date "2024.12.15"]
[Round "1.17"]
[White "taleb al, ameri"]
[Black "Dadabaev, Zhanybek"]
[Result "0-1"]
[ECO "B22"]
[WhiteElo "1623"]
[BlackElo "1927"]
[Annotator "RC"]
[PlyCount "80"]
[EventDate "2024.12.15"]
[EventType "swiss"]
[EventCountry "UAE"]
[SourceTitle "playchess.com"]
[Source "ChessBase"]
[SourceQuality "1"]
[TimeControl "900+10"]

1. e4 {[%emt 0:00:03]} c5 {[%emt 0:00:04]} 2. c3 {[%emt 0:00:08]} d5 {[%emt 0:00:05]} 3. f3 {[%emt 0:00:10]} e6 {[%emt 0:00:32]} 4. Ne2 {[%emt 0:00:04]} Nc6 {[%emt 0:00:18]} 5. Ng3 {[%emt 0:00:05]} Bd6 {[%emt 0:00:15]} 6. Bb5 {[%emt 0:00:48]} Qh4 {[%emt 0:00:29]} 7. O-O {[%emt 0:01:00]} Bxg3 {[%emt 0:00:06]} 8. hxg3 {[%emt 0:00:02]} Qxg3 {[%emt 0:00:02]} 9. d4 {[%emt 0:00:20]} Nf6 {[%emt 0:04:10]} 10. e5 {[%emt 0:01:08]} Nh5 {[%emt 0:00:27]} 11. f4 {[%emt 0:00:06]} Qh4 {[%emt 0:00:29]} 12. Qf3 {[%emt 0:13:16]} Ng3 {[%emt 0:01:05]} 13. Rd1 {[%emt 0:00:00]} cxd4 {[%emt 0:00:49]} 14. cxd4 {[%emt 0:00:00]} Bd7 {[%emt 0:00:36]} 15. Bxc6 {[%emt 0:00:00]} Bxc6 {[%emt 0:00:01]} 16. Nc3 {[%emt 0:00:00]} b5 {[%emt 0:01:13]} 17. a3 {[%emt 0:00:00]} a5 {[%emt 0:00:08]} 18. Bd2 {[%emt 0:00:00]} O-O {[%emt 0:01:56]} 19. Be1 {[%emt 0:00:00]} Qh1+ {[%emt 0:00:01]} 20. Kf2 {[%emt 0:00:00]} Nf5 {[%emt 0:00:28]} 21. Bd2 {[%emt 0:00:00]} Qh4+ {[%emt 0:00:02]} 22. g3 {[%emt 0:00:00]} Qh2+ {[%emt 0:00:38]} 23. Qg2 {[%emt 0:00:00]} Qxg2+ {[%emt 0:00:02]} 24. Kxg2 {[%emt 0:00:00]} Nxd4 {[%emt 0:00:06]} 25. Be3 {[%emt 0:00:00]} Nb3 {[%emt 0:00:02]} 26. Bd4 {[%emt 0:00:00]} Nxa1 {[%emt 0:00:12]} 27. Rxa1 {[%emt 0:00:00]} b4 {[%emt 0:00:01]} 28. Ne2 {[%emt 0:00:00]} Bb5 {[%emt 0:00:05]} 29. Ng1 {[%emt 0:00:00]} Rfc8 {[%emt 0:00:02]} 30. Nf3 {[%emt 0:00:00]} Bd3 {[%emt 0:00:09]} 31. g4 {[%emt 0:00:00]} Be4 {[%emt 0:00:05]} 32. Kg3 {[%emt 0:00:00]} Bxf3 {[%emt 0:00:23]} 33. Kxf3 {[%emt 0:00:00]} Rc4 {[%emt 0:00:02]} 34. Ke3 {[%emt 0:00:00]} Rac8 {[%emt 0:00:04]} 35. Bb6 {[%emt 0:00:00]} a4 {[%emt 0:00:30]} 36. axb4 {[%emt 0:00:00]} Rxb4 {[%emt 0:00:12]} 37. Bd4 {[%emt 0:00:00]} Rb3+ {[%emt 0:00:19]} 38. Kd2 {[%emt 0:00:18]} Rc4 {[%emt 0:00:10]} 39. Bc3 {[%emt 0:01:51]} d4 {[%emt 0:00:03]} 40. Kd3 {[%emt 0:00:08]} Rcb4 {[%emt 0:00:34]} 0-1

[Event "Asian Amateur Rapid 2024"]
[Site "Al Ain"]
[Date "2024.12.15"]
[Round "1.19"]
[White "Amrit Adhikari"]
[Black "Muhammad Shayan Noushad Ibrahi"]
[Result "0-1"]
[ECO "B90"]
[WhiteElo "1602"]
[BlackElo "1716"]
[Annotator "NA"]
[PlyCount "109"]
[EventDate "2024.12.15"]
[EventType "swiss"]
[EventCountry "UAE"]
[SourceTitle "playchess.com"]
[Source "ChessBase"]
[SourceQuality "1"]
[TimeControl "900+10"]

1. e4 {[%emt 0:00:09]} c5 {[%emt 0:00:03]} 2. Nf3 {[%emt 0:00:04]} d6 {[%emt 0:00:03]} 3. d4 {[%emt 0:00:11]} cxd4 {[%emt 0:00:03]} 4. Nxd4 {[%emt 0:00:03]} Nf6 {[%emt 0:00:04]} 5. Nc3 {[%emt 0:00:02]} a6 {[%emt 0:00:02]} 6. Bd3 {[%emt 0:00:17]} e5 {[%emt 0:00:09]} 7. Nb3 {[%emt 0:00:09]} Be7 {[%emt 0:00:18]} 8. Bg5 {[%emt 0:00:05]} Be6 {[%emt 0:00:04]} 9. Bxf6 {[%emt 0:00:17]} Bxf6 {[%emt 0:00:04]} 10. Nd5 {[%emt 0:00:04]} Nd7 {[%emt 0:00:31]} 11. c4 {[%emt 0:00:22]} O-O {[%emt 0:00:23]} 12. O-O {[%emt 0:00:11]} Bxd5 {[%emt 0:01:23]} 13. cxd5 {[%emt 0:00:05]} Qb6 {[%emt 0:00:03]} 14. Qe2 {[%emt 0:01:30]} Rac8 {[%emt 0:00:27]} 15. Rac1 {[%emt 0:00:11]} Bg5 {[%emt 0:00:03]} 16. Rxc8 {[%emt 0:00:28]} Rxc8 {[%emt 0:00:04]} 17. Qg4 {[%emt 0:00:05]} Qd8 {[%emt 0:00:14]} 18. g3 {[%emt 0:02:46]} Bh6 {[%emt 0:00:22]} 19. Qf5 {[%emt 0:01:20]} Nc5 {[%emt 0:01:13]} 20. Nxc5 {[%emt 0:00:42]} Rxc5 {[%emt 0:00:03]} 21. b3 {[%emt 0:00:47]} g6 {[%emt 0:01:06]} 22. Qg4 {[%emt 0:00:36]} Kg7 {[%emt 0:01:00]} 23. h4 {[%emt 0:00:33]} Rc3 {[%emt 0:00:43]} 24. Bb1 {[%emt 0:00:16]} Qf6 {[%emt 0:00:44]} 25. Kg2 {[%emt 0:01:45]} b5 {[%emt 0:00:56]} 26. h5 {[%emt 0:01:24]} Rc7 {[%emt 0:02:17]} 27. hxg6 {[%emt 0:00:17]} fxg6 {[%emt 0:00:31]} 28. Rh1 {[%emt 0:00:44]} Rf7 {[%emt 0:00:11]} 29. Rf1 {[%emt 0:01:16]} Qd8 {[%emt 0:01:17]} 30. f4 {[%emt 0:00:22]} exf4 {[%emt 0:00:25]} 31. gxf4 {[%emt 0:00:01]} Qf6 {[%emt 0:00:19]} 32. f5 {[%emt 0:00:24]} Bg5 {[%emt 0:02:34]} 33. Bd3 {[%emt 0:00:22]} h5 {[%emt 0:01:30]} 34. Qg3 {[%emt 0:00:30]} Kh6 {[%emt 0:01:24]} 35. fxg6 {[%emt 0:00:06]} Qb2+ {[%emt 0:00:12]} 36. Kh1 {[%emt 0:01:03]} Rxf1+ {[%emt 0:00:06]} 37. Bxf1 {[%emt 0:00:01]} Qb1 {[%emt 0:00:05]} 38. Qf2 {[%emt 0:00:14]} Qxe4+ {[%emt 0:00:03]} 39. Bg2 {[%emt 0:00:03]} Qb1+ {[%emt 0:00:04]} 40. Bf1 {[%emt 0:00:02]} Kxg6 {[%emt 0:00:11]} 41. Kh2 {[%emt 0:00:44]} Qe4 {[%emt 0:00:11]} 42. Bg2 {[%emt 0:00:18]} Qe5+ {[%emt 0:00:11]} 43. Kh1 {[%emt 0:00:09]} Bf4 {[%emt 0:00:10]} 44. Qc2+ {[%emt 0:00:07]} Kh6 {[%emt 0:00:08]} 45. Qb1 {[%emt 0:00:29]} Qe3 {[%emt 0:00:08]} 46. Qa1 {[%emt 0:00:19]} Be5 {[%emt 0:00:08]} 47. Qf1 {[%emt 0:00:03]} Kg7 {[%emt 0:00:18]} 48. Qg1 {[%emt 0:00:10]} Qf4 {[%emt 0:00:05]} 49. Bh3+ {[%emt 0:00:19]} Kh6 {[%emt 0:00:05]} 50. Qg2 {[%emt 0:00:19]} Bd4 {[%emt 0:00:23]} 51. Qe2 {[%emt 0:00:13]} Qc1+ {[%emt 0:00:23]} 52. Qf1 {[%emt 0:00:02]} Qe3 {[%emt 0:00:09]} 53. Qf8+ {[%emt 0:00:05]} Kg5 {[%emt 0:00:03]} 54. Qg8+ {[%emt 0:00:17]} Kh4 {[%emt 0:00:04]} 55. Qd8+ {[%emt 0:00:25]} 0-1

[Event "Asian Amateur Rapid 2024"]
[Site "Al Ain"]
[Date "2024.12.15"]
[Round "1.20"]
[White "Al Abdali, Zeyad Saleh"]
[Black "Eisa Mohmood, Alkhoori"]
[Result "0-1"]
[ECO "A56"]
[WhiteElo "1744"]
[BlackElo "1853"]
[Annotator "NA"]
[PlyCount "80"]
[EventDate "2024.12.15"]
[EventType "swiss"]
[EventCountry "UAE"]
[SourceTitle "playchess.com"]
[Source "ChessBase"]
[SourceQuality "1"]
[TimeControl "900+10"]

1. d4 {[%emt 0:00:31]} Nf6 {[%emt 0:00:19]} 2. c4 {[%emt 0:00:06]} c5 {[%emt 0:00:12]} 3. d5 {[%emt 0:00:02]} e5 {[%emt 0:00:03]} 4. Nc3 {[%emt 0:00:19]} d6 {[%emt 0:00:05]} 5. Nf3 {[%emt 0:00:23]} Be7 {[%emt 0:00:01]} 6. e4 {[%emt 0:00:39]} O-O {[%emt 0:00:03]} 7. Be2 {[%emt 0:00:08]} Nbd7 {[%emt 0:00:18]} 8. Nd2 {[%emt 0:00:24]} a6 {[%emt 0:00:43]} 9. Nf1 {[%emt 0:00:14]} Rb8 {[%emt 0:02:24]} 10. Ne3 {[%emt 0:01:21]} g6 {[%emt 0:02:08]} 11. h4 {[%emt 0:01:11]} b5 {[%emt 0:00:22]} 12. cxb5 {[%emt 0:04:02]} axb5 {[%emt 0:00:12]} 13. Bf3 {[%emt 0:00:11]} c4 {[%emt 0:01:42]} 14. h5 {[%emt 0:00:12]} Nc5 {[%emt 0:00:20]} 15. hxg6 {[%emt 0:00:03]} Nd3+ {[%emt 0:00:40]} 16. Kf1 {[%emt 0:00:08]} fxg6 {[%emt 0:00:10]} 17. Qe2 {[%emt 0:01:48]} Ba6 {[%emt 0:03:24]} 18. Kg1 {[%emt 0:01:01]} b4 {[%emt 0:00:22]} 19. Ncd1 {[%emt 0:00:58]} Rc8 {[%emt 0:00:54]} 20. Ng4 {[%emt 0:00:12]} Nxg4 {[%emt 0:01:22]} 21. Bxg4 {[%emt 0:00:03]} Bg5 {[%emt 0:00:54]} 22. Be6+ {[%emt 0:01:26]} Kh8 {[%emt 0:00:14]} 23. Bxc8 {[%emt 0:00:46]} Bxc8 {[%emt 0:00:10]} 24. Be3 {[%emt 0:00:28]} Qf6 {[%emt 0:00:49]} 25. b3 {[%emt 0:00:31]} Ba6 {[%emt 0:00:27]} 26. Qd2 {[%emt 0:01:06]} Bxe3 {[%emt 0:00:35]} 27. Nxe3 {[%emt 0:00:35]} c3 {[%emt 0:00:03]} 28. Qc2 {[%emt 0:00:09]} Qg5 {[%emt 0:00:27]} 29. Rf1 {[%emt 0:00:18]} Nf4 {[%emt 0:00:04]} 30. Re1 {[%emt 0:00:11]} Bd3 {[%emt 0:00:09]} 31. Qc1 {[%emt 0:00:06]} Ne2+ {[%emt 0:00:16]} 32. Rxe2 {[%emt 0:00:02]} Bxe2 {[%emt 0:00:02]} 33. a3 {[%emt 0:00:06]} Qf4 {[%emt 0:00:09]} 34. Qe1 {[%emt 0:00:13]} Bd3 {[%emt 0:00:18]} 35. axb4 {[%emt 0:00:01]} c2 {[%emt 0:00:02]} 36. f3 {[%emt 0:00:45]} Rc8 {[%emt 0:00:10]} 37. Qc1 {[%emt 0:00:02]} Qxe3+ {[%emt 0:00:04]} 38. Qxe3 {[%emt 0:00:02]} c1=Q+ {[%emt 0:00:03]} 39. Kf2 {[%emt 0:00:22]} Rc2+ {[%emt 0:00:04]} 40. Kg3 {[%emt 0:00:11]} Qxe3 {[%emt 0:00:00]} 0-1

[Event "Asian Amateur Rapid 2024"]
[Site "Al Ain"]
[Date "2024.12.15"]
[Round "1.21"]
[White "Sinno, Abdul Salam"]
[Black "Farhaan, M."]
[Result "0-1"]
[ECO "D00"]
[WhiteElo "1527"]
[BlackElo "1695"]
[Annotator "NA"]
[PlyCount "111"]
[EventDate "2024.12.15"]
[EventType "swiss"]
[EventCountry "UAE"]
[SourceTitle "playchess.com"]
[Source "ChessBase"]
[SourceQuality "1"]
[TimeControl "900+10"]

1. d4 {[%emt 0:00:03]} Nf6 {[%emt 0:00:01]} 2. Bf4 {[%emt 0:00:02]} d5 {[%emt 0:00:02]} 3. e3 {[%emt 0:00:07]} c5 {[%emt 0:00:01]} 4. c3 {[%emt 0:00:08]} Nc6 {[%emt 0:00:02]} 5. Nd2 {[%emt 0:00:07]} Bf5 {[%emt 0:00:09]} 6. Qb3 {[%emt 0:00:06]} Qc8 {[%emt 0:00:09]} 7. h3 {[%emt 0:00:28]} e6 {[%emt 0:00:02]} 8. Ngf3 {[%emt 0:00:03]} c4 {[%emt 0:00:17]} 9. Qa4 {[%emt 0:00:24]} a6 {[%emt 0:00:03]} 10. Ne5 {[%emt 0:00:17]} b5 {[%emt 0:00:04]} 11. Qd1 {[%emt 0:00:05]} Nxe5 {[%emt 0:00:03]} 12. dxe5 {[%emt 0:00:09]} Nd7 {[%emt 0:00:02]} 13. Nf3 {[%emt 0:00:05]} Nc5 {[%emt 0:00:02]} 14. Nd4 {[%emt 0:00:12]} Bd3 {[%emt 0:00:05]} 15. b4 {[%emt 0:00:29]} Bxf1 {[%emt 0:00:03]} 16. Kxf1 {[%emt 0:00:27]} Nd3 {[%emt 0:00:10]} 17. Bg3 {[%emt 0:00:46]} Be7 {[%emt 0:00:22]} 18. Kg1 {[%emt 0:00:27]} h5 {[%emt 0:00:03]} 19. f4 {[%emt 0:01:08]} Kf8 {[%emt 0:00:38]} 20. Kh2 {[%emt 0:00:08]} h4 {[%emt 0:00:04]} 21. Be1 {[%emt 0:00:07]} g5 {[%emt 0:00:03]} 22. Rf1 {[%emt 0:00:17]} gxf4 {[%emt 0:01:11]} 23. exf4 {[%emt 0:00:10]} a5 {[%emt 0:00:04]} 24. Qg4 {[%emt 0:01:39]} axb4 {[%emt 0:00:09]} 25. cxb4 {[%emt 0:01:18]} Rg8 {[%emt 0:00:21]} 26. Qh5 {[%emt 0:00:14]} Nxe1 {[%emt 0:02:11]} 27. Rfxe1 {[%emt 0:00:08]} Bxb4 {[%emt 0:00:05]} 28. Rf1 {[%emt 0:00:29]} Bc3 {[%emt 0:00:23]} 29. Nxb5 {[%emt 0:00:18]} Bxa1 {[%emt 0:00:12]} 30. Nd6 {[%emt 0:00:03]} Qc7 {[%emt 0:04:09]} 31. Rxa1 {[%emt 0:00:18]} f6 {[%emt 0:01:32]} 32. Qxh4 {[%emt 0:01:04]} Qg7 {[%emt 0:00:02]} 33. Qf2 {[%emt 0:00:56]} fxe5 {[%emt 0:02:24]} 34. fxe5+ {[%emt 0:00:03]} Ke7 {[%emt 0:00:01]} 35. Re1 {[%emt 0:01:31]} Kd7 {[%emt 0:00:31]} 36. Re2 {[%emt 0:00:26]} Kc6 {[%emt 0:01:30]} 37. Qd4 {[%emt 0:01:17]} Qg3+ {[%emt 0:00:09]} 38. Kh1 {[%emt 0:00:17]} Rgf8 {[%emt 0:00:27]} 39. Qd1 {[%emt 0:00:39]} Qd3 {[%emt 0:00:29]} 40. Qe1 {[%emt 0:01:21]} Rxa2 {[%emt 0:00:07]} 41. Qb4 {[%emt 0:01:15]} Qb3 {[%emt 0:00:59]} 42. Qe1 {[%emt 0:00:37]} Rxe2 {[%emt 0:00:23]} 43. Qxe2 {[%emt 0:00:02]} Qg3 {[%emt 0:00:19]} 44. Nxc4 {[%emt 0:00:24]} dxc4 {[%emt 0:00:40]} 45. Qxc4+ {[%emt 0:00:02]} Kd7 {[%emt 0:00:01]} 46. Qd4+ {[%emt 0:00:23]} Ke8 {[%emt 0:00:05]} 47. Qa4+ {[%emt 0:00:08]} Kf7 {[%emt 0:00:01]} 48. Qd7+ {[%emt 0:00:07]} Kg8 {[%emt 0:00:02]} 49. Qxe6+ {[%emt 0:00:01]} Rf7 {[%emt 0:00:01]} 50. Qe8+ {[%emt 0:00:06]} Kg7 {[%emt 0:00:02]} 51. Kg1 {[%emt 0:00:42]} Qe3+ {[%emt 0:00:02]} 52. Kh2 {[%emt 0:00:14]} Qf4+ {[%emt 0:00:01]} 53. Kg1 {[%emt 0:00:04]} Rc7 {[%emt 0:00:11]} 54. g4 {[%emt 0:00:52]} Rc1+ {[%emt 0:00:05]} 55. Kg2 {[%emt 0:00:01]} Rc2+ {[%emt 0:00:02]} 56. Kg1 {[%emt 0:00:00]} 0-1

[Event "Asian Amateur Rapid 2024"]
[Site "Al Ain"]
[Date "2024.12.15"]
[Round "1.22"]
[White "Abdulrahim, Salem"]
[Black "Muhammad Saleem, Hamad"]
[Result "1-0"]
[ECO "C41"]
[WhiteElo "1843"]
[BlackElo "1577"]
[Annotator "NA"]
[PlyCount "72"]
[EventDate "2024.12.15"]
[EventType "swiss"]
[EventCountry "UAE"]
[SourceTitle "playchess.com"]
[Source "ChessBase"]
[SourceQuality "1"]
[TimeControl "900+10"]

1. e4 {[%emt 0:00:38]} e5 {[%emt 0:00:09]} 2. Nf3 {[%emt 0:00:02]} d6 {[%emt 0:00:05]} 3. d4 {[%emt 0:00:05]} exd4 {[%emt 0:00:03]} 4. Nxd4 {[%emt 0:00:02]} Nf6 {[%emt 0:00:03]} 5. Nc3 {[%emt 0:00:02]} Be7 {[%emt 0:00:02]} 6. Bc4 {[%emt 0:00:04]} O-O {[%emt 0:00:06]} 7. O-O {[%emt 0:00:04]} Re8 {[%emt 0:00:01]} 8. Re1 {[%emt 0:00:04]} Bf8 {[%emt 0:00:02]} 9. Bg5 {[%emt 0:00:03]} Nbd7 {[%emt 0:00:45]} 10. f4 {[%emt 0:01:02]} c6 {[%emt 0:00:18]} 11. Kh1 {[%emt 0:00:06]} h6 {[%emt 0:01:50]} 12. Bh4 {[%emt 0:00:01]} Nc5 {[%emt 0:00:05]} 13. e5 {[%emt 0:00:21]} Ng4 {[%emt 0:01:50]} 14. Bxd8 {[%emt 0:04:10]} Nf2+ {[%emt 0:00:05]} 15. Kg1 {[%emt 0:00:02]} Nxd1 {[%emt 0:00:03]} 16. Raxd1 {[%emt 0:00:04]} Rxd8 {[%emt 0:00:01]} 17. b4 {[%emt 0:00:56]} Na6 {[%emt 0:00:18]} 18. Bxa6 {[%emt 0:00:14]} bxa6 {[%emt 0:01:02]} 19. Nxc6 {[%emt 0:00:09]} Rd7 {[%emt 0:00:03]} 20. exd6 {[%emt 0:00:17]} Bxd6 {[%emt 0:03:22]} 21. Re8+ {[%emt 0:00:02]} Kh7 {[%emt 0:00:10]} 22. Ne5 {[%emt 0:00:59]} Bc5+ {[%emt 0:00:19]} 23. bxc5 {[%emt 0:00:07]} Rxd1+ {[%emt 0:00:03]} 24. Nxd1 {[%emt 0:00:03]} Rb8 {[%emt 0:01:43]} 25. Nc3 {[%emt 0:00:04]} f6 {[%emt 0:00:50]} 26. Nf7 {[%emt 0:00:03]} Rb7 {[%emt 0:01:15]} 27. Nd6 {[%emt 0:00:05]} Bd7 {[%emt 0:00:02]} 28. Nxb7 {[%emt 0:00:14]} Bxe8 {[%emt 0:00:01]} 29. Na5 {[%emt 0:00:02]} Kg8 {[%emt 0:00:12]} 30. c6 {[%emt 0:00:02]} Kf7 {[%emt 0:00:02]} 31. Nd5 {[%emt 0:00:02]} Ke6 {[%emt 0:00:03]} 32. Nc7+ {[%emt 0:00:02]} Ke7 {[%emt 0:00:02]} 33. Nxe8 {[%emt 0:00:03]} Kxe8 {[%emt 0:00:02]} 34. Kf2 {[%emt 0:00:02]} Kd8 {[%emt 0:00:01]} 35. Ke3 {[%emt 0:00:01]} Kc7 {[%emt 0:00:01]} 36. Ke4 {[%emt 0:00:02]} Kb6 {[%emt 0:00:01]} 1-0

[Event "Asian Amateur Rapid 2024"]
[Site "Al Ain"]
[Date "2024.12.15"]
[Round "1.23"]
[White "Mujahid Bin Yazeed"]
[Black "Adel, Tahseen Khalil"]
[Result "1-0"]
[ECO "B46"]
[WhiteElo "1837"]
[BlackElo "1833"]
[Annotator "NA"]
[PlyCount "61"]
[EventDate "2024.12.15"]
[EventType "swiss"]
[EventCountry "UAE"]
[SourceTitle "playchess.com"]
[Source "ChessBase"]
[SourceQuality "1"]
[TimeControl "900+10"]

1. e4 {[%emt 0:00:03]} c5 {[%emt 0:00:03]} 2. Nc3 {[%emt 0:00:06]} Nc6 {[%emt 0:00:02]} 3. Nf3 {[%emt 0:00:22]} e6 {[%emt 0:00:05]} 4. d4 {[%emt 0:00:19]} cxd4 {[%emt 0:00:01]} 5. Nxd4 {[%emt 0:00:02]} a6 {[%emt 0:00:06]} 6. Be2 {[%emt 0:00:33]} Be7 {[%emt 0:00:39]} 7. O-O {[%emt 0:00:22]} Nf6 {[%emt 0:00:02]} 8. Nxc6 {[%emt 0:00:46]} bxc6 {[%emt 0:00:03]} 9. e5 {[%emt 0:00:23]} Nd5 {[%emt 0:00:04]} 10. Ne4 {[%emt 0:00:17]} O-O {[%emt 0:00:39]} 11. c4 {[%emt 0:00:20]} Nc7 {[%emt 0:00:33]} 12. Be3 {[%emt 0:00:22]} Rb8 {[%emt 0:00:41]} 13. Qd2 {[%emt 0:00:48]} Ne8 {[%emt 0:01:02]} 14. Rfd1 {[%emt 0:01:00]} f6 {[%emt 0:00:21]} 15. f4 {[%emt 0:00:57]} fxe5 {[%emt 0:02:23]} 16. fxe5 {[%emt 0:00:02]} Rf5 {[%emt 0:01:24]} 17. Ng3 {[%emt 0:01:07]} Rxe5 {[%emt 0:01:00]} 18. Bd4 {[%emt 0:03:43]} Rg5 {[%emt 0:00:20]} 19. Rf1 {[%emt 0:00:38]} e5 {[%emt 0:03:04]} 20. Be3 {[%emt 0:00:35]} Rg6 {[%emt 0:00:08]} 21. Bd3 {[%emt 0:01:07]} Rf6 {[%emt 0:00:11]} 22. Qc2 {[%emt 0:01:04]} Rxf1+ {[%emt 0:00:26]} 23. Rxf1 {[%emt 0:00:03]} Nf6 {[%emt 0:00:20]} 24. Ne4 {[%emt 0:01:09]} h6 {[%emt 0:03:04]} 25. Nxf6+ {[%emt 0:00:43]} Bxf6 {[%emt 0:00:03]} 26. Bh7+ {[%emt 0:00:09]} Kh8 {[%emt 0:00:28]} 27. Qg6 {[%emt 0:00:30]} e4 {[%emt 0:01:20]} 28. Bxh6 {[%emt 0:00:51]} Bd4+ {[%emt 0:00:10]} 29. Kh1 {[%emt 0:00:01]} Bb7 {[%emt 0:01:00]} 30. Bf4 {[%emt 0:00:37]} Rc8 {[%emt 0:00:15]} 31. Qh5 {[%emt 0:00:09]} 1-0

[Event "Asian Amateur Rapid 2024"]
[Site "Al Ain"]
[Date "2024.12.15"]
[Round "1.24"]
[White "Ghaith Saeed Alnuaimi"]
[Black "Abdulla Ateeq Alremaeithi"]
[Result "1-0"]
[ECO "A16"]
[WhiteElo "1870"]
[BlackElo "1639"]
[Annotator "NA RC"]
[PlyCount "73"]
[EventDate "2024.12.15"]
[EventType "swiss"]
[EventCountry "UAE"]
[SourceTitle "playchess.com"]
[Source "ChessBase"]
[SourceQuality "1"]
[TimeControl "900+10"]

1. c4 {[%emt 0:00:09]} Nf6 {[%emt 0:00:04]} 2. Nc3 {[%emt 0:00:05]} g6 {[%emt 0:00:02]} 3. g3 {[%emt 0:00:01]} Bg7 {[%emt 0:00:02]} 4. Bg2 {[%emt 0:00:02]} O-O {[%emt 0:00:02]} 5. b3 {[%emt 0:00:01]} d6 {[%emt 0:00:03]} 6. d4 {[%emt 0:00:02]} Nbd7 {[%emt 0:00:04]} 7. Bb2 {[%emt 0:00:02]} c6 {[%emt 0:00:02]} 8. Nf3 {[%emt 0:00:21]} e5 {[%emt 0:00:04]} 9. e3 {[%emt 0:00:01]} Qc7 {[%emt 0:00:12]} 10. O-O {[%emt 0:00:03]} Ne8 {[%emt 0:00:33]} 11. Rc1 {[%emt 0:00:28]} f5 {[%emt 0:00:07]} 12. dxe5 {[%emt 0:00:23]} dxe5 {[%emt 0:00:11]} 13. Ng5 {[%emt 0:00:02]} Nc5 {[%emt 0:01:06]} 14. Ba3 {[%emt 0:01:22]} Qe7 {[%emt 0:00:15]} 15. h4 {[%emt 0:00:23]} Nf6 {[%emt 0:02:13]} 16. Na4 {[%emt 0:00:16]} Nfd7 {[%emt 0:00:03]} 17. b4 {[%emt 0:03:21]} Nxa4 {[%emt 0:00:28]} 18. Qxa4 {[%emt 0:00:02]} e4 {[%emt 0:00:48]} 19. b5 {[%emt 0:00:32]} c5 {[%emt 0:00:03]} 20. Qd1 {[%emt 0:03:41]} h6 {[%emt 0:03:33]} 21. Qd5+ {[%emt 0:00:53]} Kh8 {[%emt 0:00:52]} 22. Ne6 {[%emt 0:00:18]} Nf6 {[%emt 0:03:18]} 23. Nxf8 {[%emt 0:00:03]} Bxf8 {[%emt 0:01:01]} 24. Qd2 {[%emt 0:00:40]} Nd7 {[%emt 0:00:55]} 25. Bb2+ {[%emt 0:00:29]} Bg7 {[%emt 0:00:11]} 26. Bxg7+ {[%emt 0:00:31]} Kxg7 {[%emt 0:00:02]} 27. f4 {[%emt 0:00:11]} Nf6 {[%emt 0:00:21]} 28. Rfd1 {[%emt 0:00:36]} Ng4 {[%emt 0:00:24]} 29. Bh3 {[%emt 0:00:59]} h5 {[%emt 0:00:46]} 30. Bxg4 {[%emt 0:00:04]} hxg4 {[%emt 0:00:11]} 31. Qd8 {[%emt 0:00:05]} Qf6 {[%emt 0:00:33]} 32. Qc7+ {[%emt 0:00:41]} Kh6 {[%emt 0:00:12]} 33. Rd8 {[%emt 0:00:12]} Qb2 {[%emt 0:00:23]} 34. Re1 {[%emt 0:01:21]} Qc3 {[%emt 0:01:19]} 35. Kf2 {[%emt 0:00:04]} Be6 {[%emt 0:00:19]} 36. Rxa8 {[%emt 0:00:30]} Bxc4 {[%emt 0:00:05]} 37. Qd6 {[%emt 0:00:47]} 1-0